[Event "German Cup 2019"]
[Site "Magdeburg"]
[Date "2019.05.30"]
[Round "2.1"]
[White "Bold, Andre"]
[Black "Kuberczyk, Christoph"]
[Result "0-1"]
[ECO "A07"]
[WhiteElo "2064"]
[BlackElo "2271"]
[Annotator "ChessBase"]
[PlyCount "125"]
[EventDate "2019.05.30"]
[EventType "k.o."]
[EventCountry "GER"]
[SourceTitle "playchess.com"]
[Source "ChessBase"]
[SourceQuality "1"]
[TimeControl "40/5400+30:900+30"]

1. g3 {[%emt 0:00:00]} d5 {[%emt 0:00:00]} 2. Nf3 {[%emt 0:00:00]} g6 {[%emt 0:00:17]} 3. Bg2 {[%emt 0:00:00]} Bg7 {[%emt 0:00:06]} 4. c4 {[%emt 0:00:00]} dxc4 {[%emt 0:02:32]} 5. Qa4+ {[%emt 0:00:00]} Nc6 {[%emt 0:01:04]} 6. Qxc4 {[%emt 0:01:11]} e5 {[%emt 0:06:54]} 7. d3 {[%emt 0:02:34]} Nge7 {[%emt 0:01:23]} 8. O-O {[%emt 0:00:09]} O-O {[%emt 0:00:20]} 9. Nc3 {[%emt 0:05:10]} h6 {[%emt 0:06:10]} 10. Be3 {[%emt 0:06:35]} Be6 {[%emt 0:01:23]} 11. Qa4 {[%emt 0:00:14]} Nf5 {[%emt 0:06:23]} 12. Bc5 {[%emt 0:04:28]} Re8 {[%emt 0:02:33]} 13. e4 {[%emt 0:02:11]} Nfe7 {[%emt 0:05:21]} 14. Rfd1 {[%emt 0:02:58]} a6 {[%emt 0:09:40]} 15. Rac1 {[%emt 0:07:45]} Qd7 {[%emt 0:03:37]} 16. Rd2 {[%emt 0:08:35]} Red8 {[%emt 0:04:17]} 17. Rcd1 {[%emt 0:04:02]} Bg4 {[%emt 0:10:18]} 18. Bxe7 {[%emt 0:14:33]} Qxe7 {[%emt 0:08:37]} 19. Nd5 {[%emt 0:02:21]} Qd7 {[%emt 0:00:34]} 20. Rc1 {[%emt 0:01:00]} Rac8 {[%emt 0:02:40]} 21. Qa3 {[%emt 0:11:48]} Kh8 {[%emt 0:00:57]} 22. Qc3 {[%emt 0:02:37]} Be6 {[%emt 0:05:34]} 23. Nb4 {[%emt 0:03:36]} Nxb4 {[%emt 0:04:38]} 24. Qxb4 {[%emt 0:00:05]} c5 {[%emt 0:03:13]} 25. Qa5 {[%emt 0:01:12]} Qb5 {[%emt 0:01:12]} 26. Qc3 {[%emt 0:03:14]} f6 {[%emt 0:03:52]} 27. Nh4 {[%emt 0:02:58]} Kh7 {[%emt 0:00:14]} 28. a3 {[%emt 0:01:03]} Qd7 {[%emt 0:05:14]} 29. Bf1 {[%emt 0:03:33]} h5 {[%emt 0:00:32]} 30. Rdd1 {[%emt 0:00:54]} Bh6 {[%emt 0:00:31]} 31. Rb1 {[%emt 0:00:05]} Bg4 {[%emt 0:02:24]} 32. Re1 {[%emt 0:00:57]} Rc7 {[%emt 0:00:56]} 33. Ng2 {[%emt 0:00:22]} c4 {[%emt 0:00:54]} 34. dxc4 {[%emt 0:07:28]} Bd2 {[%emt 0:00:09]} 35. Qb3 {[%emt 0:00:04]} Bxe1 {[%emt 0:01:00]} 36. Rxe1 {[%emt 0:00:03]} Be6 {[%emt 0:00:49]} 37. Ne3 {[%emt 0:00:35]} b5 {[%emt 0:00:17]} 38. Nd5 {[%emt 0:01:03]} Bxd5 {[%emt 0:00:01]} 39. cxd5 {[%emt 0:00:06]} Kg7 {[%emt 0:01:50]} 40. Qe3 {[%emt 0:00:21]} g5 {[%emt 0:00:44]} 41. Be2 {[%emt 0:16:13]} Kg6 {[%emt 0:01:48]} 42. Qb6 {[%emt 0:00:00]} Qd6 {[%emt 0:00:27]} 43. Qe3 {[%emt 0:00:00]} Rh8 {[%emt 0:00:58]} 44. Qf3 {[%emt 0:00:00]} Qd7 {[%emt 0:00:49]} 45. Qe3 {[%emt 0:00:00]} Rb7 {[%emt 0:02:31]} 46. Rf1 {[%emt 0:00:00]} h4 {[%emt 0:01:45]} 47. f4 {[%emt 0:00:00]} hxg3 {[%emt 0:01:04]} 48. fxg5 {[%emt 0:00:00]} gxh2+ {[%emt 0:01:10]} 49. Kh1 {[%emt 0:00:00]} fxg5 {[%emt 0:02:58]} 50. Rf5 {[%emt 0:00:00]} Qd8 {[%emt 0:02:11]} 51. Qc5 {[%emt 0:00:00]} Qb6 {[%emt 0:01:19]} 52. Qc1 {[%emt 0:00:34]} Qg1+ {[%emt 0:00:28]} 53. Qxg1 {[%emt 0:00:05]} hxg1=Q+ {[%emt 0:00:06]} 54. Kxg1 {[%emt 0:00:04]} Re8 {[%emt 0:01:15]} 55. Kf2 {[%emt 0:00:48]} Rc7 {[%emt 0:00:31]} 56. Kg3 {[%emt 0:00:27]} Rc2 {[%emt 0:00:38]} 57. Bf3 {[%emt 0:00:05]} Rc1 {[%emt 0:01:36]} 58. Bg2 {[%emt 0:00:32]} Rg1 {[%emt 0:00:30]} 59. Kf2 {[%emt 0:00:18]} Rb1 {[%emt 0:00:10]} 60. b4 {[%emt 0:00:02]} Rb3 {[%emt 0:00:21]} 61. Bf3 {[%emt 0:01:20]} Re7 {[%emt 0:00:38]} 62. Rf8 {[%emt 0:00:55]} Rf7 {[%emt 0:00:30]} 63. Ke1 {[%emt 0:09:17]} 0-1

[Event "German Cup 2019"]
[Site "Magdeburg"]
[Date "2019.05.30"]
[Round "2.1"]
[White "Meyer-Dunker, Paul"]
[Black "Jandke, Manfred"]
[Result "1-0"]
[ECO "C02"]
[WhiteElo "2062"]
[BlackElo "2072"]
[Annotator "NA"]
[PlyCount "59"]
[EventDate "2019.05.30"]
[EventType "k.o."]
[EventCountry "GER"]
[SourceTitle "playchess.com"]
[Source "ChessBase"]
[SourceQuality "1"]
[TimeControl "40/5400+30:900+30"]

1. e4 {[%emt 0:00:00]} e6 {[%emt 0:00:00]} 2. d4 {[%emt 0:00:00]} d5 {[%emt 0:00:00]} 3. e5 {[%emt 0:00:00]} c5 {[%emt 0:00:00]} 4. c3 {[%emt 0:00:00]} Qa5 {[%emt 0:00:02]} 5. a3 {[%emt 0:05:59]} Bd7 {[%emt 0:02:48]} 6. Nf3 {[%emt 0:12:18]} Ne7 {[%emt 0:20:54]} 7. Be3 {[%emt 0:06:08]} Nf5 {[%emt 0:01:48]} 8. Bd3 {[%emt 0:03:20]} Nxe3 {[%emt 0:06:24]} 9. fxe3 {[%emt 0:00:09]} Be7 {[%emt 0:00:15]} 10. O-O {[%emt 0:02:07]} Nc6 {[%emt 0:02:13]} 11. Nbd2 {[%emt 0:05:11]} Qb6 {[%emt 0:07:53]} 12. b4 {[%emt 0:02:56]} c4 {[%emt 0:09:28]} 13. Bc2 {[%emt 0:08:14]} f6 {[%emt 0:05:11]} 14. exf6 {[%emt 0:00:45]} gxf6 {[%emt 0:01:07]} 15. Kh1 {[%emt 0:02:23]} O-O-O {[%emt 0:02:47]} 16. e4 {[%emt 0:06:56]} Rdg8 {[%emt 0:05:46]} 17. exd5 {[%emt 0:05:35]} exd5 {[%emt 0:00:15]} 18. Nh4 {[%emt 0:03:28]} Kb8 {[%emt 0:06:11]} 19. Qf3 {[%emt 0:03:05]} Rg5 {[%emt 0:03:37]} 20. Bf5 {[%emt 0:01:52]} Bxf5 {[%emt 0:06:11]} 21. Nxf5 {[%emt 0:00:18]} Qd8 {[%emt 0:04:26]} 22. Rae1 {[%emt 0:05:24]} Rhg8 {[%emt 0:01:34]} 23. b5 {[%emt 0:04:56]} Rxg2 {[%emt 0:01:52]} 24. bxc6 {[%emt 0:02:16]} Bd6 {[%emt 0:00:05]} 25. Qxg2 {[%emt 0:04:36]} Rxg2 {[%emt 0:02:56]} 26. Kxg2 {[%emt 0:00:04]} bxc6 {[%emt 0:03:05]} 27. Kh1 {[%emt 0:00:16]} Bxa3 {[%emt 0:01:00]} 28. Rg1 {[%emt 0:03:32]} Bf8 {[%emt 0:04:23]} 29. Rg8 {[%emt 0:01:13]} Kc7 {[%emt 0:00:12]} 30. Ng7 {[%emt 0:00:35]} 1-0

[Event "German Cup 2019"]
[Site "Magdeburg"]
[Date "2019.05.30"]
[Round "2.1"]
[White "Kurth, Uwe"]
[Black "Cofmann, Veaceslav"]
[Result "0-1"]
[ECO "B01"]
[WhiteElo "2027"]
[BlackElo "2250"]
[Annotator "ChessBase"]
[PlyCount "108"]
[EventDate "2019.05.30"]
[EventType "k.o."]
[EventCountry "GER"]
[SourceTitle "playchess.com"]
[Source "ChessBase"]
[SourceQuality "1"]
[TimeControl "40/5400+30:900+30"]

1. e4 {[%emt 0:00:00]} d5 {[%emt 0:00:00]} 2. exd5 {[%emt 0:00:00]} Nf6 {[%emt 0:00:00]} 3. Nf3 {[%emt 0:00:00]} Nxd5 {[%emt 0:00:03]} 4. Bc4 {[%emt 0:00:35]} c6 {[%emt 0:00:17]} 5. d4 {[%emt 0:02:22]} Bg4 {[%emt 0:00:21]} 6. h3 {[%emt 0:01:23]} Bxf3 {[%emt 0:03:41]} 7. Qxf3 {[%emt 0:00:22]} e6 {[%emt 0:00:08]} 8. c3 {[%emt 0:02:58]} Nd7 {[%emt 0:01:52]} 9. Nd2 {[%emt 0:00:37]} Qf6 {[%emt 0:00:37]} 10. O-O {[%emt 0:09:57]} Qxf3 {[%emt 0:01:12]} 11. Nxf3 {[%emt 0:00:08]} Bd6 {[%emt 0:00:22]} 12. Re1 {[%emt 0:01:02]} O-O {[%emt 0:00:22]} 13. Bd2 {[%emt 0:00:56]} h6 {[%emt 0:01:40]} 14. a3 {[%emt 0:03:37]} Rad8 {[%emt 0:01:15]} 15. Rad1 {[%emt 0:01:52]} Bf4 {[%emt 0:00:36]} 16. Bxf4 {[%emt 0:03:38]} Nxf4 {[%emt 0:00:07]} 17. h4 {[%emt 0:05:50]} a5 {[%emt 0:05:06]} 18. g3 {[%emt 0:04:00]} Nd5 {[%emt 0:03:08]} 19. Bb3 {[%emt 0:06:32]} N5b6 {[%emt 0:05:06]} 20. Ne5 {[%emt 0:03:18]} Nxe5 {[%emt 0:02:28]} 21. Rxe5 {[%emt 0:00:46]} a4 {[%emt 0:00:20]} 22. Ba2 {[%emt 0:00:32]} Nd7 {[%emt 0:05:01]} 23. Re3 {[%emt 0:04:32]} Nf6 {[%emt 0:03:37]} 24. f3 {[%emt 0:04:59]} Rfe8 {[%emt 0:01:17]} 25. Red3 {[%emt 0:03:50]} g5 {[%emt 0:03:24]} 26. hxg5 {[%emt 0:03:03]} hxg5 {[%emt 0:00:08]} 27. Kf2 {[%emt 0:01:46]} Kg7 {[%emt 0:00:26]} 28. c4 {[%emt 0:08:26]} Rh8 {[%emt 0:00:33]} 29. Kg2 {[%emt 0:00:33]} Rh6 {[%emt 0:03:14]} 30. Rh1 {[%emt 0:02:55]} Rxh1 {[%emt 0:00:12]} 31. Kxh1 {[%emt 0:00:01]} c5 {[%emt 0:00:09]} 32. Bb1 {[%emt 0:04:33]} cxd4 {[%emt 0:01:10]} 33. Bc2 {[%emt 0:00:21]} e5 {[%emt 0:00:05]} 34. Bxa4 {[%emt 0:04:05]} g4 {[%emt 0:00:09]} 35. Kg2 {[%emt 0:03:28]} gxf3+ {[%emt 0:00:16]} 36. Rxf3 {[%emt 0:00:05]} e4 {[%emt 0:00:41]} 37. Rf5 {[%emt 0:02:04]} Kg6 {[%emt 0:01:49]} 38. Re5 {[%emt 0:01:37]} d3 {[%emt 0:02:00]} 39. Bd1 {[%emt 0:09:11]} Rd4 {[%emt 0:00:22]} 40. b3 {[%emt 0:00:44]} Nd7 {[%emt 0:00:27]} 41. Re8 {[%emt 0:17:03]} f5 {[%emt 0:16:27]} 42. Kf2 {[%emt 0:00:00]} d2 {[%emt 0:00:00]} 43. Ke2 {[%emt 0:00:00]} Nf6 {[%emt 0:00:00]} 44. Re6 {[%emt 0:00:00]} Kg5 {[%emt 0:00:00]} 45. Re7 {[%emt 0:00:00]} Nh5 {[%emt 0:00:00]} 46. Kf2 {[%emt 0:00:00]} Rd3 {[%emt 0:00:00]} 47. g4 {[%emt 0:00:00]} fxg4 {[%emt 0:00:00]} 48. Rxe4 {[%emt 0:00:00]} g3+ {[%emt 0:00:00]} 49. Kf1 {[%emt 0:04:01]} Nf4 {[%emt 0:00:00]} 50. Re8 {[%emt 0:00:24]} g2+ {[%emt 0:00:00]} 51. Kf2 {[%emt 0:01:04]} Rh3 {[%emt 0:00:00]} 52. Rg8+ {[%emt 0:00:39]} Kf6 {[%emt 0:00:00]} 53. Rxg2 {[%emt 0:01:01]} Nxg2 {[%emt 0:00:00]} 54. Kxg2 {[%emt 0:00:04]} Re3 {[%emt 0:00:00]} 0-1

[Event "German Cup 2019"]
[Site "Magdeburg"]
[Date "2019.05.30"]
[Round "2.1"]
[White "Othmer, Michael"]
[Black "Hoehn, Michael"]
[Result "1/2-1/2"]
[ECO "A08"]
[WhiteElo "1985"]
[BlackElo "2026"]
[Annotator "NA RC"]
[PlyCount "64"]
[EventDate "2019.05.30"]
[EventType "k.o."]
[EventCountry "GER"]
[SourceTitle "playchess.com"]
[Source "ChessBase"]
[SourceQuality "1"]
[TimeControl "40/5400+30:900+30"]

1. Nf3 {[%emt 0:00:00]} Nf6 {[%emt 0:00:00]} 2. g3 {[%emt 0:00:49]} g6 {[%emt 0:00:00]} 3. Bg2 {[%emt 0:00:18]} Bg7 {[%emt 0:00:04]} 4. O-O {[%emt 0:00:06]} O-O {[%emt 0:00:05]} 5. d3 {[%emt 0:00:52]} d5 {[%emt 0:00:54]} 6. Nbd2 {[%emt 0:00:58]} c5 {[%emt 0:00:44]} 7. Re1 {[%emt 0:00:50]} Nc6 {[%emt 0:00:45]} 8. e4 {[%emt 0:01:32]} Qc7 {[%emt 0:23:27]} 9. c3 {[%emt 0:11:56]} dxe4 {[%emt 0:15:47]} 10. dxe4 {[%emt 0:02:27]} Rd8 {[%emt 0:02:50]} 11. Qc2 {[%emt 0:06:00]} b5 {[%emt 0:03:23]} 12. Nb3 {[%emt 0:02:25]} Nd7 {[%emt 0:16:11]} 13. Be3 {[%emt 0:01:34]} c4 {[%emt 0:01:42]} 14. Nbd4 {[%emt 0:00:36]} Nxd4 {[%emt 0:01:33]} 15. Nxd4 {[%emt 0:00:35]} Bxd4 {[%emt 0:03:58]} 16. cxd4 {[%emt 0:04:18]} e5 {[%emt 0:02:45]} 17. Rad1 {[%emt 0:08:50]} exd4 {[%emt 0:02:53]} 18. Rxd4 {[%emt 0:09:51]} Ne5 {[%emt 0:08:30]} 19. Rxd8+ {[%emt 0:05:41]} Qxd8 {[%emt 0:00:04]} 20. Rd1 {[%emt 0:00:32]} Qa5 {[%emt 0:04:03]} 21. Qc3 {[%emt 0:06:15]} b4 {[%emt 0:01:47]} 22. Qd4 {[%emt 0:00:11]} Be6 {[%emt 0:02:01]} 23. Bh6 {[%emt 0:04:07]} f6 {[%emt 0:02:52]} 24. Qd6 {[%emt 0:06:24]} Re8 {[%emt 0:01:00]} 25. Be3 {[%emt 0:04:06]} c3 {[%emt 0:02:48]} 26. bxc3 {[%emt 0:01:41]} bxc3 {[%emt 0:00:17]} 27. Rc1 {[%emt 0:06:22]} Kf7 {[%emt 0:01:08]} 28. Qc5 {[%emt 0:04:50]} Qxc5 {[%emt 0:00:33]} 29. Bxc5 {[%emt 0:00:02]} Rc8 {[%emt 0:01:03]} 30. Rxc3 {[%emt 0:01:16]} Nd7 {[%emt 0:00:24]} 31. Bd4 {[%emt 0:00:31]} Rxc3 {[%emt 0:00:07]} 32. Bxc3 {[%emt 0:00:03]} Bxa2 {[%emt 0:00:06]} 1/2-1/2

[Event "German Cup 2019"]
[Site "Magdeburg"]
[Date "2019.05.31"]
[Round "4.1"]
[White "Kopylov, Michael"]
[Black "Kollenberg, Cedric"]
[Result "1-0"]
[ECO "D93"]
[WhiteElo "2413"]
[BlackElo "2008"]
[Annotator "ChessBase"]
[PlyCount "99"]
[EventDate "2019.05.30"]
[EventType "k.o."]
[EventCountry "GER"]
[SourceTitle "playchess.com"]
[Source "ChessBase"]
[SourceQuality "1"]
[TimeControl "40/5400+30:900+30"]

1. d4 {[%emt 0:00:00]} d5 {[%emt 0:00:00]} 2. c4 {[%emt 0:00:00]} c6 {[%emt 0:00:00]} 3. Nf3 {[%emt 0:00:41]} Nf6 {[%emt 0:00:00]} 4. Qc2 {[%emt 0:00:15]} g6 {[%emt 0:00:00]} 5. Bf4 {[%emt 0:00:22]} Bg7 {[%emt 0:00:02]} 6. e3 {[%emt 0:00:12]} O-O {[%emt 0:00:08]} 7. Nc3 {[%emt 0:00:08]} c5 {[%emt 0:00:07]} 8. dxc5 {[%emt 0:06:57]} Qa5 {[%emt 0:00:18]} 9. Nd2 {[%emt 0:05:18]} dxc4 {[%emt 0:00:19]} 10. Bxc4 {[%emt 0:01:43]} Qxc5 {[%emt 0:01:07]} 11. Nb5 {[%emt 0:03:33]} Nbd7 {[%emt 0:08:36]} 12. Nc7 {[%emt 0:11:19]} e5 {[%emt 0:02:17]} 13. Bg5 {[%emt 0:00:19]} Rb8 {[%emt 0:06:41]} 14. Bxf6 {[%emt 0:00:46]} Bxf6 {[%emt 0:00:07]} 15. Nd5 {[%emt 0:00:30]} Qa5 {[%emt 0:09:06]} 16. O-O {[%emt 0:02:44]} b5 {[%emt 0:06:25]} 17. Bb3 {[%emt 0:01:59]} Bb7 {[%emt 0:01:34]} 18. Ne4 {[%emt 0:00:46]} Bxd5 {[%emt 0:03:18]} 19. Bxd5 {[%emt 0:00:06]} Be7 {[%emt 0:03:05]} 20. Rac1 {[%emt 0:11:17]} Nb6 {[%emt 0:10:17]} 21. Qc7 {[%emt 0:09:21]} Rbe8 {[%emt 0:21:07]} 22. Qxe5 {[%emt 0:07:29]} Nxd5 {[%emt 0:05:07]} 23. Qxd5 {[%emt 0:00:05]} Qb4 {[%emt 0:00:45]} 24. Nc3 {[%emt 0:15:11]} a6 {[%emt 0:01:48]} 25. Rc2 {[%emt 0:01:28]} Bf6 {[%emt 0:03:05]} 26. a3 {[%emt 0:00:55]} Qa5 {[%emt 0:02:08]} 27. Rfc1 {[%emt 0:04:27]} Rd8 {[%emt 0:02:02]} 28. Qc6 {[%emt 0:01:07]} Bxc3 {[%emt 0:07:44]} 29. Qxc3 {[%emt 0:02:18]} Qxc3 {[%emt 0:00:06]} 30. Rxc3 {[%emt 0:00:04]} Rd2 {[%emt 0:00:13]} 31. R3c2 {[%emt 0:14:10]} Rfd8 {[%emt 0:01:06]} 32. Kf1 {[%emt 0:00:00]} Rxc2 {[%emt 0:02:38]} 33. Rxc2 {[%emt 0:00:00]} Rd6 {[%emt 0:01:26]} 34. Ke2 {[%emt 0:00:00]} Kg7 {[%emt 0:00:37]} 35. e4 {[%emt 0:00:00]} Kf6 {[%emt 0:00:36]} 36. f4 {[%emt 0:00:00]} Ke6 {[%emt 0:01:29]} 37. Ke3 {[%emt 0:00:00]} h5 {[%emt 0:01:22]} 38. e5 {[%emt 0:00:00]} Rb6 {[%emt 0:00:03]} 39. b4 {[%emt 0:00:00]} a5 {[%emt 0:01:22]} 40. Rc5 {[%emt 0:00:00]} axb4 {[%emt 0:00:05]} 41. axb4 {[%emt 0:13:16]} Kf5 {[%emt 0:02:45]} 42. Rc7 {[%emt 0:00:00]} Ke6 {[%emt 0:00:49]} 43. Ke4 {[%emt 0:00:00]} Ra6 {[%emt 0:03:26]} 44. Rb7 {[%emt 0:00:00]} Rc6 {[%emt 0:00:08]} 45. Rxb5 {[%emt 0:00:00]} Rc4+ {[%emt 0:00:06]} 46. Ke3 {[%emt 0:00:00]} Kf5 {[%emt 0:01:35]} 47. Rb7 {[%emt 0:00:00]} Ke6 {[%emt 0:08:53]} 48. Rb6+ {[%emt 0:00:00]} Ke7 {[%emt 0:00:22]} 49. b5 {[%emt 0:00:00]} Rb4 {[%emt 0:00:44]} 50. Rb8 {[%emt 0:00:00]} 1-0

[Event "German Cup 2019"]
[Site "Magdeburg"]
[Date "2019.05.31"]
[Round "4.1"]
[White "Colpe, Malte"]
[Black "Langrock, Hannes"]
[Result "1-0"]
[ECO "A87"]
[WhiteElo "2381"]
[BlackElo "2367"]
[Annotator "ChessBase"]
[PlyCount "89"]
[EventDate "2019.05.30"]
[EventType "k.o."]
[EventCountry "GER"]
[SourceTitle "playchess.com"]
[Source "ChessBase"]
[SourceQuality "1"]
[TimeControl "40/5400+30:900+30"]

1. d4 {[%emt 0:00:00]} f5 {[%emt 0:00:03]} 2. Nf3 {[%emt 0:00:00]} Nf6 {[%emt 0:00:09]} 3. g3 {[%emt 0:00:00]} g6 {[%emt 0:00:10]} 4. Bg2 {[%emt 0:00:02]} Bg7 {[%emt 0:00:06]} 5. O-O {[%emt 0:00:09]} O-O {[%emt 0:00:10]} 6. b3 {[%emt 0:00:49]} d6 {[%emt 0:03:18]} 7. Bb2 {[%emt 0:00:07]} Ne4 {[%emt 0:05:55]} 8. Nbd2 {[%emt 0:03:00]} Nc6 {[%emt 0:10:43]} 9. e3 {[%emt 0:05:54]} Nxd2 {[%emt 0:01:53]} 10. Qxd2 {[%emt 0:01:38]} e5 {[%emt 0:00:13]} 11. c4 {[%emt 0:09:43]} e4 {[%emt 0:02:29]} 12. Ne1 {[%emt 0:00:10]} a5 {[%emt 0:09:43]} 13. f3 {[%emt 0:07:35]} exf3 {[%emt 0:05:39]} 14. Bxf3 {[%emt 0:00:11]} g5 {[%emt 0:11:35]} 15. Nd3 {[%emt 0:06:52]} Qe7 {[%emt 0:03:14]} 16. Rae1 {[%emt 0:01:00]} Bd7 {[%emt 0:02:04]} 17. Bc3 {[%emt 0:02:52]} Kh8 {[%emt 0:11:31]} 18. Kh1 {[%emt 0:03:21]} Qf6 {[%emt 0:07:32]} 19. Bg2 {[%emt 0:03:21]} Qh6 {[%emt 0:03:21]} 20. Kg1 {[%emt 0:04:52]} Qf6 {[%emt 0:10:19]} 21. e4 {[%emt 0:05:55]} Qg6 {[%emt 0:07:38]} 22. e5 {[%emt 0:02:14]} Rae8 {[%emt 0:01:51]} 23. e6 {[%emt 0:05:14]} Rxe6 {[%emt 0:01:12]} 24. Rxe6 {[%emt 0:00:19]} Bxe6 {[%emt 0:00:32]} 25. d5 {[%emt 0:00:23]} Bd7 {[%emt 0:00:02]} 26. dxc6 {[%emt 0:00:28]} Bxc6 {[%emt 0:00:05]} 27. Bxc6 {[%emt 0:01:21]} bxc6 {[%emt 0:00:02]} 28. Bxg7+ {[%emt 0:04:19]} Qxg7 {[%emt 0:00:27]} 29. Qb2 {[%emt 0:00:32]} Rf6 {[%emt 0:00:03]} 30. Re1 {[%emt 0:00:40]} h6 {[%emt 0:00:12]} 31. Qd4 {[%emt 0:01:36]} Kh7 {[%emt 0:00:20]} 32. Kg2 {[%emt 0:00:50]} c5 {[%emt 0:00:31]} 33. Qe3 {[%emt 0:01:05]} Rf7 {[%emt 0:00:21]} 34. Nf2 {[%emt 0:00:11]} Qb2 {[%emt 0:00:55]} 35. Qe8 {[%emt 0:01:39]} Qf6 {[%emt 0:00:52]} 36. Qe6 {[%emt 0:03:18]} Qg7 {[%emt 0:00:09]} 37. Qd5 {[%emt 0:01:07]} Qf6 {[%emt 0:00:27]} 38. Re6 {[%emt 0:00:34]} Qg7 {[%emt 0:00:11]} 39. g4 {[%emt 0:02:42]} Qf8 {[%emt 0:02:02]} 40. gxf5 {[%emt 0:01:47]} Rxf5 {[%emt 0:00:13]} 41. Qe4 {[%emt 0:15:19]} Kg7 {[%emt 0:15:58]} 42. Ng4 {[%emt 0:06:23]} h5 {[%emt 0:00:00]} 43. Ne3 {[%emt 0:00:00]} Rf6 {[%emt 0:00:00]} 44. Re7+ {[%emt 0:00:00]} Rf7 {[%emt 0:00:00]} 45. Nf5+ {[%emt 0:00:00]} 1-0

[Event "German Cup 2019"]
[Site "Magdeburg"]
[Date "2019.05.31"]
[Round "4.1"]
[White "Andre, Gordon"]
[Black "Kueppers, Timo"]
[Result "1-0"]
[ECO "B08"]
[WhiteElo "2340"]
[BlackElo "2312"]
[Annotator "ChessBase"]
[PlyCount "39"]
[EventDate "2019.05.30"]
[EventType "k.o."]
[EventCountry "GER"]
[SourceTitle "playchess.com"]
[Source "ChessBase"]
[SourceQuality "1"]
[TimeControl "40/5400+30:900+30"]

1. d4 {[%emt 0:00:00]} d6 {[%emt 0:00:00]} 2. e4 {[%emt 0:00:18]} Nf6 {[%emt 0:00:00]} 3. Nc3 {[%emt 0:02:38]} g6 {[%emt 0:00:20]} 4. Be3 {[%emt 0:03:47]} Bg7 {[%emt 0:01:30]} 5. Nf3 {[%emt 0:02:32]} O-O {[%emt 0:01:41]} 6. Qd2 {[%emt 0:02:58]} a6 {[%emt 0:03:08]} 7. Bd3 {[%emt 0:08:18]} b5 {[%emt 0:05:39]} 8. a4 {[%emt 0:04:08]} b4 {[%emt 0:03:46]} 9. Ne2 {[%emt 0:03:07]} a5 {[%emt 0:03:38]} 10. Bh6 {[%emt 0:09:24]} Bb7 {[%emt 0:08:52]} 11. Ng3 {[%emt 0:02:19]} Re8 {[%emt 0:19:32]} 12. Bxg7 {[%emt 0:04:30]} Kxg7 {[%emt 0:00:06]} 13. h4 {[%emt 0:00:13]} e5 {[%emt 0:16:51]} 14. dxe5 {[%emt 0:03:32]} dxe5 {[%emt 0:00:33]} 15. h5 {[%emt 0:00:10]} Ba6 {[%emt 0:02:59]} 16. Qg5 {[%emt 0:18:42]} Bxd3 {[%emt 0:00:59]} 17. Nf5+ {[%emt 0:12:21]} Kh8 {[%emt 0:09:38]} 18. hxg6 {[%emt 0:01:11]} fxg6 {[%emt 0:00:17]} 19. Nxe5 {[%emt 0:00:52]} Kg8 {[%emt 0:06:46]} 20. Rxh7 {[%emt 0:03:04]} 1-0

[Event "German Cup 2019"]
[Site "Magdeburg"]
[Date "2019.05.31"]
[Round "4.1"]
[White "Nguyen, Alex Dac-Vuong"]
[Black "Cofmann, Veaceslav"]
[Result "1/2-1/2"]
[ECO "A05"]
[WhiteElo "2287"]
[BlackElo "2250"]
[Annotator "ChessBase"]
[PlyCount "121"]
[EventDate "2019.05.30"]
[EventType "k.o."]
[EventCountry "GER"]
[SourceTitle "playchess.com"]
[Source "ChessBase"]
[SourceQuality "1"]
[TimeControl "40/5400+30:900+30"]

1. Nf3 {[%emt 0:00:00]} Nf6 {[%emt 0:00:00]} 2. g3 {[%emt 0:00:00]} e6 {[%emt 0:00:00]} 3. Bg2 {[%emt 0:00:00]} d5 {[%emt 0:00:06]} 4. O-O {[%emt 0:00:06]} Be7 {[%emt 0:00:10]} 5. d3 {[%emt 0:00:07]} O-O {[%emt 0:00:23]} 6. Nbd2 {[%emt 0:00:20]} b6 {[%emt 0:00:06]} 7. b3 {[%emt 0:00:14]} Bb7 {[%emt 0:00:07]} 8. Bb2 {[%emt 0:00:06]} c5 {[%emt 0:00:07]} 9. Ne5 {[%emt 0:02:45]} Nbd7 {[%emt 0:00:12]} 10. e4 {[%emt 0:04:23]} Nxe5 {[%emt 0:03:46]} 11. Bxe5 {[%emt 0:00:09]} Nd7 {[%emt 0:00:14]} 12. Bb2 {[%emt 0:00:13]} Bf6 {[%emt 0:01:08]} 13. Bxf6 {[%emt 0:00:51]} Qxf6 {[%emt 0:00:14]} 14. Qe2 {[%emt 0:01:20]} Qc3 {[%emt 0:01:27]} 15. Rac1 {[%emt 0:02:46]} Nf6 {[%emt 0:02:26]} 16. Rfe1 {[%emt 0:07:46]} b5 {[%emt 0:01:34]} 17. e5 {[%emt 0:04:06]} Nd7 {[%emt 0:00:30]} 18. Nb1 {[%emt 0:00:30]} Qb2 {[%emt 0:00:30]} 19. c3 {[%emt 0:00:30]} Qxe2 {[%emt 0:00:30]} 20. Rxe2 {[%emt 0:00:30]} Rab8 {[%emt 0:00:30]} 21. f4 {[%emt 0:00:30]} Rfc8 {[%emt 0:00:30]} 22. Rec2 {[%emt 0:00:30]} c4 {[%emt 0:00:30]} 23. d4 {[%emt 0:00:30]} cxb3 {[%emt 0:00:30]} 24. axb3 {[%emt 0:00:30]} a5 {[%emt 0:00:30]} 25. Bf1 {[%emt 0:00:30]} Bc6 {[%emt 0:00:30]} 26. Na3 {[%emt 0:00:30]} Kf8 {[%emt 0:00:30]} 27. b4 {[%emt 0:00:30]} a4 {[%emt 0:00:30]} 28. Kf2 {[%emt 0:00:30]} Ke7 {[%emt 0:00:30]} 29. Ke3 {[%emt 0:00:30]} Rg8 {[%emt 0:00:30]} 30. Bd3 {[%emt 0:00:30]} g6 {[%emt 0:00:30]} 31. Rf2 {[%emt 0:00:30]} h5 {[%emt 0:00:30]} 32. Kd2 {[%emt 0:00:30]} Rh8 {[%emt 0:00:30]} 33. h3 {[%emt 0:00:30]} Nf8 {[%emt 0:00:30]} 34. Rh1 {[%emt 0:00:30]} Bd7 {[%emt 0:00:30]} 35. Rfh2 {[%emt 0:00:30]} Rb7 {[%emt 0:00:30]} 36. g4 {[%emt 0:00:30]} Ke8 {[%emt 0:00:30]} 37. Be2 {[%emt 0:00:30]} h4 {[%emt 0:00:30]} 38. Rf2 {[%emt 0:00:30]} Nh7 {[%emt 0:00:30]} 39. Bd3 {[%emt 0:00:30]} Rg8 {[%emt 0:00:30]} 40. Rg1 {[%emt 0:00:30]} Nf8 {[%emt 0:00:30]} 41. Rfg2 {[%emt 0:15:30]} Ke7 {[%emt 0:15:30]} 42. Rf2 {[%emt 0:00:30]} Ke8 {[%emt 0:00:30]} 43. Rgg2 {[%emt 0:00:30]} Kd8 {[%emt 0:00:30]} 44. Kc2 {[%emt 0:00:30]} Kc7 {[%emt 0:00:30]} 45. Kb2 {[%emt 0:00:30]} Rb8 {[%emt 0:00:30]} 46. Nc2 {[%emt 0:00:30]} Bc6 {[%emt 0:00:30]} 47. Ne1 {[%emt 0:00:30]} Nd7 {[%emt 0:00:30]} 48. Nf3 {[%emt 0:00:30]} Nb6 {[%emt 0:00:30]} 49. Ng5 {[%emt 0:00:30]} Nc4+ {[%emt 0:00:30]} 50. Ka2 {[%emt 0:00:30]} Rbf8 {[%emt 0:00:30]} 51. Rg1 {[%emt 0:00:30]} Bd7 {[%emt 0:00:30]} 52. Nh7 {[%emt 0:00:30]} Rd8 {[%emt 0:00:30]} 53. Bxc4 {[%emt 0:00:30]} dxc4 {[%emt 0:00:30]} 54. Nf6 {[%emt 0:00:30]} Rh8 {[%emt 0:00:30]} 55. Rd2 {[%emt 0:00:30]} Bc6 {[%emt 0:00:30]} 56. f5 {[%emt 0:00:30]} g5 {[%emt 0:00:30]} 57. fxe6 {[%emt 0:00:30]} fxe6 {[%emt 0:00:30]} 58. Rf1 {[%emt 0:00:30]} Rdf8 {[%emt 0:00:30]} 59. Rdf2 {[%emt 0:00:30]} Kd8 {[%emt 0:00:30]} 60. Kb2 {[%emt 0:00:30]} Ke7 {[%emt 0:00:30]} 61. Ka3 {[%emt 0:00:30]} 1/2-1/2